bitfinex/quotes_ETHUSD_20241104
["timestamp","ask_amount","ask_price","bid_price","bid_amount"]
[1730717737741,4.05301,2467.3,2467.1,0.19354357]
[1730717737899,4.05317,2467.2,2466.9,0.6673]
[1730717738103,4.05317,2467.2,2467.0,0.50325111]
[1730717738335,4.05317,2467.2,2467.1,0.19354951]
[1730717740832,4.05317,2467.2,2466.8,4.05381]
[1730717741015,4.05317,2467.2,2466.9,0.50320994]
[1730717741315,4.05317,2467.2,2467.0,0.50320994]
[1730717741518,4.05317,2467.2,2467.1,0.19353328]
[1730717744741,4.05317,2467.2,2467.1,0.19353794]
[1730717748526,4.05317,2467.2,2467.1,0.19355101]
[1730717752360,4.05317,2467.2,2467.1,0.19363535]
[1730717757451,4.05334,2467.1,2466.8,0.38745514]
[1730717758034,4.05334,2467.1,2466.7,4.781841]
[1730717758232,4.05334,2467.1,2466.8,0.89118606]
[1730717758433,4.05334,2467.1,2466.9,0.50369195]
[1730717758633,4.05334,2467.1,2467.0,0.19371906]
[1730717758823,4.05334,2467.1,2467.0,0.50368484]
[1730717760750,4.05334,2467.1,2466.7,1.86219243]
[1730717760951,4.05334,2467.1,2467.0,0.50368442]
[1730717761130,4.05334,2467.1,2467.0,0.19371616]
[1730717761771,4.05334,2467.1,2467.0,0.50368018]
[1730717762656,4.80447,2467.4,2467.0,5.22446018]
[1730717762864,4.05287,2467.4,2467.1,0.50368018]
[1730717763034,4.05287,2467.4,2467.2,0.19371616]
[1730717763234,4.05287,2467.4,2467.3,0.19371616]
[1730717763635,4.05266,2467.6,2467.3,0.19373917]
[1730717763958,4.05269,2467.5,2467.4,0.19374112]
[1730717764679,4.05264,2467.6,2467.4,0.19374112]
[1730717764834,4.05264,2467.6,2467.4,0.6673]
[1730717765034,4.05263,2467.6,2467.4,0.6673]
[1730717765350,4.05239,2467.7,2467.4,0.6673]
[1730717765546,4.05239,2467.7,2467.5,0.19368041]
[1730717765872,4.05252,2467.6,2467.4,0.6673]
[1730717766632,4.05239,2467.7,2467.4,0.6673]
[1730717767078,4.05239,2467.7,2467.5,0.19365125]
[1730717767276,4.05239,2467.7,2467.4,0.6673]
[1730717767574,4.05259,2467.6,2467.4,0.6673]
[1730717771212,4.05239,2467.7,2467.4,0.6673]
[1730717771545,4.05255,2467.6,2467.4,0.6673]
[1730717771751,0.781,2467.9,2467.4,0.6673]
[1730717772057,4.05225,2467.8,2467.5,0.19354841]
[1730717772261,4.05225,2467.8,2467.4,0.6673]
[1730717772487,4.05225,2467.8,2467.5,0.19351491]
[1730717772488,4.05239,2467.7,2467.5,0.19351491]
[1730717772782,4.05239,2467.7,2467.4,0.6673]
[1730717773021,4.05239,2467.7,2467.5,0.19351525]
[1730717773154,4.05239,2467.7,2467.4,0.6673]
[1730717773354,4.05239,2467.7,2467.5,0.19348725]
[1730717773575,4.05239,2467.7,2467.4,0.6673]
[1730717773775,4.05239,2467.7,2467.5,0.19348719]
[1730717773981,4.05252,2467.6,2467.4,0.6673]
[1730717774182,4.05252,2467.6,2467.5,0.19349059]
[1730717774683,4.05252,2467.6,2467.4,0.6673]
[1730717774884,4.05239,2467.7,2467.4,0.6673]
[1730717775057,4.05239,2467.7,2467.5,0.19346332]
[1730717775389,4.05239,2467.7,2467.4,0.6673]
[1730717775595,4.05239,2467.7,2467.5,0.19344827]
[1730717775895,4.05239,2467.7,2467.4,0.6673]
[1730717776590,4.05253,2467.6,2467.4,0.6673]
[1730717776891,2.43750629,2467.9,2467.4,0.6673]
[1730717777195,4.05243,2467.7,2467.4,0.6673]
[1730717779487,4.05284,2467.5,2467.1,0.6673]
[1730717779693,4.05284,2467.5,2467.2,0.1934361]
[1730717779694,4.05314,2467.3,2467.2,0.1934361]
[1730717779887,4.05314,2467.3,2466.7,4.114551]
[1730717779888,4.05337,2467.1,2466.7,4.114551]
[1730717780203,4.05337,2467.1,2466.8,0.50293981]
[1730717780491,4.05337,2467.1,2466.9,0.19342979]
[1730717780701,4.05337,2467.1,2467.0,0.19342979]
[1730717780900,4.84184,2467.3,2467.0,0.19342979]
[1730717781203,4.05324,2467.2,2466.8,4.0538]
[1730717781792,4.05324,2467.2,2466.9,0.19341424]
[1730717781978,4.05324,2467.2,2467.0,0.19341424]
[1730717782188,4.05324,2467.2,2466.7,8.835761]
[1730717782372,9.54482463,2467.3,2466.8,4.55663578]
[1730717782571,4.84184,2467.3,2466.9,0.50288578]
[1730717782901,4.84184,2467.3,2467.0,0.19340908]
[1730717783085,4.84184,2467.3,2467.1,0.19340908]
[1730717783292,4.05318,2467.2,2466.7,4.781851]
[1730717783480,4.05334,2467.1,2466.8,0.50294659]
[1730717783704,4.05318,2467.2,2466.9,0.1934324]
[1730717783903,4.05318,2467.2,2467.0,0.1934324]
[1730717784121,4.05334,2467.1,2466.7,8.835711]
[1730717784322,4.05318,2467.2,2466.8,0.50294353]
[1730717784523,4.84174,2467.3,2466.9,4.55659353]
[1730717784724,4.84174,2467.3,2467.0,0.19343122]
[1730717785087,4.84174,2467.3,2466.9,4.05365]
[1730717785324,4.84174,2467.3,2467.0,0.19343349]
[1730717785531,4.05318,2467.2,2467.1,0.19343349]
[1730717786998,4.05336,2467.1,2466.7,4.781851]
[1730717787309,4.05336,2467.1,2466.8,0.50301735]
[1730717787510,4.05336,2467.1,2466.9,0.19345961]
[1730717787727,4.05336,2467.1,2467.0,0.19345961]
[1730717790102,4.05336,2467.1,2466.7,4.114501]
[1730717790299,4.05336,2467.1,2466.8,0.50291968]
[1730717790525,4.05336,2467.1,2466.9,0.19342205]
[1730717790704,4.05336,2467.1,2467.0,0.19342205]
[1730717791958,4.05336,2467.1,2466.9,0.6673]
[1730717792163,4.05336,2467.1,2467.0,0.1934077]
[1730717796325,4.05362,2467.0,2466.7,0.727881]
[1730717796513,4.05368,2466.9,2466.8,0.50285546]
[1730717796712,4.05368,2466.9,2466.8,0.19339612]
[1730717796913,4.82482,2467.0,2466.8,0.19339612]
[1730717797113,4.82482,2467.0,2466.9,0.19339612]
[1730717797357,4.05362,2467.0,2466.9,0.19339612]
[1730717798435,4.05362,2467.0,2466.9,0.193389]
[1730717798636,4.05362,2467.0,2466.9,0.19338895]
[1730717799018,4.05362,2467.0,2466.9,0.193385]
[1730717813889,4.05335,2467.1,2466.9,0.193385]
[1730717814779,8.1068,2467.1,2466.9,0.193385]
[1730717814979,4.05335,2467.1,2466.9,0.193385]
[1730717815188,8.10679,2467.1,2466.9,0.193385]
[1730717815672,4.82442,2467.2,2466.9,0.193385]
[1730717815879,4.05321,2467.2,2466.9,0.193385]
[1730717816582,4.0531,2467.3,2466.9,4.247045]
[1730717817478,4.05318,2467.2,2466.9,4.247045]
[1730717817984,4.0531,2467.3,2466.9,4.247045]
[1730717818355,8.1062,2467.3,2466.9,4.247045]
[1730717818971,4.0531,2467.3,2466.9,4.247045]
[1730717819176,4.80509,2467.4,2467.0,4.05345]
[1730717819385,4.05299,2467.4,2467.1,0.6673]
[1730717820151,4.05311,2467.3,2467.1,0.6673]
[1730717820879,4.05276,2467.5,2466.9,0.860685]
[1730717821086,4.05268,2467.5,2467.1,4.05326]
[1730717821245,4.05268,2467.5,2467.2,1.544691]
[1730717821454,4.05268,2467.5,2467.2,0.6673]
[1730717821647,8.10552,2467.5,2467.2,0.6673]
[1730717822088,4.05268,2467.5,2467.2,0.6673]
[1730717822247,0.7713,2467.6,2467.2,0.6673]
[1730717822455,4.05301,2467.3,2467.2,0.6673]
[1730717822969,4.05287,2467.4,2467.2,0.6673]
[1730717823288,4.05301,2467.3,2467.0,0.6673]
[1730717824183,4.05301,2467.3,2467.0,1.5640825]
[1730717824488,4.05287,2467.4,2467.0,5.6175625]
[1730717830201,4.05287,2467.4,2467.0,4.72078]
[1730717835199,4.05315,2467.3,2467.0,0.6673]
[1730717835501,4.8168,2467.3,2466.9,4.247035]
[1730717837605,8.1059,2467.4,2467.0,4.05348]
[1730717837783,4.05303,2467.3,2466.9,4.246975]
[1730717840409,4.05303,2467.3,2467.0,4.05349]
[1730717841012,4.85178,2467.5,2467.0,4.05349]
[1730717841305,4.05291,2467.4,2467.0,4.05349]
[1730717843077,4.05304,2467.3,2466.9,4.247015]
[1730717843279,4.05291,2467.4,2467.0,4.05348]
[1730717843616,8.10591,2467.4,2467.0,4.05348]
[1730717844311,4.05291,2467.4,2467.0,4.05348]
[1730717844814,4.05291,2467.4,2467.1,0.6673]
[1730717845783,4.05268,2467.5,2467.1,4.72062]
[1730717846911,4.05268,2467.5,2467.1,0.6673]
[1730717847114,4.05268,2467.5,2467.1,4.72063]
[1730717847715,8.10548,2467.5,2467.1,4.72063]
[1730717848011,4.05285,2467.4,2467.1,4.72063]
[1730717848180,4.05285,2467.4,2467.1,0.6673]
[1730717848603,4.05268,2467.5,2467.1,4.72063]
[1730717849416,8.1055,2467.5,2467.1,4.72063]
[1730717849621,4.05268,2467.5,2467.1,4.72063]
[1730717850122,8.1055,2467.5,2467.1,4.72063]
[1730717850421,4.05268,2467.5,2467.1,4.72063]
[1730717854327,4.05254,2467.6,2467.2,4.05305]
[1730717854547,4.05244,2467.7,2467.3,4.72019]
[1730717854696,4.82377,2467.9,2467.3,4.72019]
[1730717854697,4.82369,2467.9,2467.5,4.71988]
[1730717855120,8.87581,2467.9,2467.5,4.71988]
[1730717855429,4.05221,2467.8,2467.5,0.6673]
[1730717856828,8.87581,2467.9,2467.5,4.71997]
[1730717857030,8.87584,2467.9,2467.5,4.71997]
[1730717857921,4.0522,2467.8,2467.5,0.6673]
[1730717858219,4.05209,2467.9,2467.5,4.71989]
[1730717859433,4.05209,2467.9,2467.5,0.6673]
[1730717859655,4.05186,2468.0,2467.5,0.6673]
[1730717859804,4.05262,2467.6,2467.1,4.05332]
[1730717860003,4.05299,2467.4,2467.1,0.6673]
[1730717860223,4.05307,2467.3,2467.1,0.6673]
[1730717860538,8.10617,2467.3,2466.9,4.246975]
[1730717860832,4.05307,2467.3,2466.9,4.914275]
[1730717861034,4.05307,2467.3,2467.0,0.50412987]
[1730717861941,4.05293,2467.4,2467.0,4.55761987]
[1730717862249,4.05303,2467.3,2467.0,0.50412987]
[1730717863821,4.05293,2467.4,2467.0,0.50412987]
[1730717864022,4.05293,2467.4,2467.0,4.55752987]
[1730717866649,0.7725,2467.5,2467.0,4.55752987]
[1730717866812,4.82522,2467.5,2467.1,4.05328]
[1730717867013,4.05272,2467.5,2467.1,4.05328]
[1730717867424,4.05272,2467.5,2467.2,0.6673]
[1730717868113,4.0526,2467.6,2467.2,4.72044]
[1730717868536,4.05238,2467.7,2467.3,4.05299]
[1730717868742,0.7537,2467.9,2467.4,4.72006]
[1730717869053,0.7537,2467.9,2467.4,4.7201]
[1730717869346,0.7537,2467.9,2467.4,4.72006]
[1730717869552,4.80586,2467.9,2467.5,4.524656]
[1730717870850,4.0519,2468.0,2467.6,4.05249]
[1730717871056,4.0519,2468.0,2467.7,0.6673]
[1730717871634,4.05163,2468.2,2467.8,4.05216]
[1730717871837,4.05163,2468.2,2467.7,4.71955]
[1730717871838,4.0517,2468.1,2467.7,4.71955]
[1730717872029,8.10332,2468.2,2467.7,5.6439566]
[1730717872229,4.05172,2468.1,2467.7,5.6439566]
[1730717872620,4.05163,2468.2,2467.7,1.5917066]
[1730717872820,4.05186,2468.0,2467.7,0.6673]
[1730717873331,4.05172,2468.1,2467.7,4.71965]
[1730717874357,3.04720685,2468.3,2467.7,4.71965]
[1730717874569,4.05154,2468.2,2467.8,4.05217]
[1730717875165,8.10319,2468.2,2467.8,4.05217]
[1730717875464,4.05154,2468.2,2467.8,4.05217]
[1730717875685,0.63470056,2468.3,2467.8,0.877197]
[1730717875878,0.63470056,2468.3,2468.1,4.05168]
[1730717876165,4.05072,2468.7,2468.3,4.05126]
[1730717877041,4.05072,2468.7,2468.2,4.71883]
[1730717877238,4.05072,2468.7,2468.2,8.77027]
[1730717878669,4.05072,2468.7,2468.3,4.05135]
[1730717879041,4.05021,2469.1,2468.5,4.71826]
[1730717879042,4.0501,2469.1,2468.5,4.71826]
[1730717879244,4.05024,2469.0,2468.6,4.05081]
[1730717880270,4.8126,2469.2,2468.6,4.05081]
[1730717880439,4.05005,2469.1,2468.7,4.71797]
[1730717880839,4.05007,2469.1,2468.7,5.594868]
[1730717881063,4.05007,2469.1,2468.7,1.544178]
[1730717881237,4.05007,2469.1,2468.7,0.6673]
[1730717882076,4.05007,2469.1,2468.7,4.71798]
[1730717882281,4.87371,2469.2,2468.7,0.6673]
[1730717882455,4.0504,2468.9,2468.5,4.05103]
[1730717882657,4.0504,2468.9,2468.5,1.73086353]
[1730717882862,4.0504,2468.9,2468.5,5.78189353]
[1730717883681,5.70660629,2469.1,2468.6,4.05086]
[1730717883682,4.05024,2469.0,2468.6,4.05086]
[1730717885582,4.05008,2469.1,2468.6,4.05086]
[1730717885890,4.05008,2469.1,2468.7,4.0507]
[1730717886094,4.05008,2469.1,2468.7,4.63951474]
[1730717886385,4.05008,2469.1,2468.7,0.58881474]
[1730717886589,4.8736,2469.2,2468.8,0.6673]
[1730717886781,4.0499,2469.2,2468.8,0.6673]
[1730717887083,8.96771747,2469.3,2468.9,4.05038]
[1730717887379,8.96772747,2469.3,2468.9,4.05038]
[1730717887586,4.91798747,2469.3,2468.9,4.05038]
[1730717887979,4.91798747,2469.3,2468.9,1.01671652]
[1730717888165,4.91798747,2469.3,2469.2,4.04989]
[1730717888578,4.91798747,2469.3,2469.1,8.09987]
[1730717889291,4.91798747,2469.3,2469.2,4.04989]
[1730717889787,4.91798747,2469.3,2469.2,4.71719]
[1730717892175,4.91798747,2469.3,2469.2,6.45468705]
[1730717892385,4.91798747,2469.3,2469.2,7.425155]
[1730717893159,4.91798747,2469.3,2469.2,7.50614234]
[1730717893361,4.91798747,2469.3,2469.2,7.425155]
[1730717894157,4.91798747,2469.3,2469.2,7.50614235]
[1730717894957,4.91798747,2469.3,2469.2,7.425155]
[1730717895153,4.91798747,2469.3,2469.2,7.50614237]
[1730717897902,4.91798747,2469.3,2469.2,7.51614237]
[1730717898207,4.91798747,2469.3,2469.2,7.425155]
[1730717899994,4.91798747,2469.3,2469.2,5.76864871]
[1730717901007,4.91798747,2469.3,2469.2,7.425155]
[1730717901811,4.91798747,2469.3,2469.2,5.76864871]
[1730717902214,4.91798747,2469.3,2469.2,1.05145871]
[1730717902513,4.91798747,2469.3,2469.0,4.71749]
[1730717902677,4.91798747,2469.3,2469.0,4.79848097]
[1730717903078,4.91798747,2469.3,2469.0,4.79844097]
[1730717903280,4.91798747,2469.3,2469.1,4.05003]
[1730717904112,4.91798747,2469.3,2469.0,4.71745]
[1730717904410,4.91798747,2469.3,2469.1,4.521785]
[1730717904621,4.91798747,2469.3,2469.2,4.04989]
[1730717905187,4.91798747,2469.3,2469.1,4.521715]
[1730717906528,0.7941,2469.2,2468.8,4.05049]
[1730717906894,4.84409,2469.2,2468.8,4.05049]
[1730717908419,4.84409,2469.2,2468.7,4.05062]
[1730717908838,4.84409,2469.2,2468.8,4.05053]
[1730717909624,4.05005,2469.1,2468.7,4.05062]
[1730717909822,4.05005,2469.1,2468.7,4.927503]
[1730717910023,4.05005,2469.1,2468.7,8.978153]
[1730717910185,4.05005,2469.1,2468.7,4.927503]
[1730717910687,4.05005,2469.1,2468.7,0.876883]
[1730717910892,0.7941,2469.2,2468.7,0.876883]
[1730717911088,4.84413,2469.2,2468.7,4.927583]
[1730717912054,4.84413,2469.2,2468.8,4.05053]
[1730717914141,0.7941,2469.2,2468.9,4.05036]
[1730717916225,4.04976,2469.3,2468.9,8.10065]
[1730717916746,4.81696,2469.4,2468.9,8.10057]
[1730717917052,4.81696,2469.4,2469.0,4.05017]
[1730717921055,4.81696,2469.4,2469.1,0.50412987]
[1730717925533,4.81696,2469.4,2469.1,4.55417987]
[1730717925839,0.7673,2469.4,2469.1,4.55417987]
[1730717926054,4.82617,2469.6,2469.2,4.04978]
[1730717926254,4.82617,2469.6,2469.3,4.91821568]
[1730717926758,0.7769,2469.6,2469.3,4.91813568]
[1730717927526,4.82617,2469.6,2469.3,0.86849568]
[1730717928045,4.04941,2469.5,2469.3,0.86849568]
[1730717928754,4.04941,2469.5,2469.2,0.6673]
[1730717928934,4.82621,2469.6,2469.2,4.71717]
[1730717931755,4.82621,2469.6,2469.2,4.71711]
[1730717932853,4.82621,2469.6,2469.3,4.04972]
[1730717933059,5.70485618,2469.7,2469.3,4.04972]
[1730717933357,9.75405618,2469.7,2469.4,0.876683]
[1730717933559,4.04925,2469.6,2469.4,0.876683]
[1730717934569,5.70485618,2469.7,2469.4,0.876683]
[1730717934864,4.04935,2469.6,2469.4,0.876683]
[1730717935449,4.04935,2469.6,2469.2,4.71711]
[1730717935947,0.7658,2469.8,2469.2,4.71711]
[1730717935948,0.7658,2469.8,2469.2,0.6673]
[1730717936155,0.7658,2469.8,2469.4,4.0494]
[1730717937242,0.7658,2469.8,2469.5,4.04939]
[1730717937654,4.81481,2469.8,2469.3,4.0496]
[1730717937836,4.81481,2469.8,2469.4,0.47169]
[1730717938425,4.81481,2469.8,2469.4,4.52122]
[1730717938766,4.04911,2469.7,2469.4,0.47169]
[1730717940778,0.7658,2469.8,2469.4,0.47169]
[1730717941067,4.81477,2469.8,2469.4,4.52124]
[1730717941269,4.81477,2469.8,2469.5,0.857091]
[1730717941767,4.04914,2469.7,2469.4,0.47169]
[1730717941968,4.81477,2469.8,2469.4,4.52124]
[1730717943955,4.04907,2469.7,2469.4,0.47169]
[1730717945068,4.04936,2469.6,2469.2,4.71712]
[1730717945375,4.04943,2469.5,2469.2,0.6673]
[1730717945959,4.04935,2469.6,2469.2,0.6673]
[1730717946157,4.04941,2469.5,2469.2,0.6673]
[1730717946351,4.04941,2469.5,2469.2,1.18944099]
[1730717948079,8.09867,2469.6,2469.2,5.23933099]
[1730717948280,4.0494,2469.5,2469.2,1.18944099]
[1730717948677,1.65574618,2469.7,2469.2,1.18944099]
[1730717948882,4.0493,2469.6,2469.2,5.23933099]
[1730717952965,4.0493,2469.6,2469.2,1.18944099]
[1730717953171,8.09864,2469.6,2469.2,0.6673]
[1730717953373,4.04946,2469.5,2469.2,0.6673]
[1730717954307,4.04973,2469.3,2469.1,0.50412987]
[1730717954870,4.0496,2469.4,2469.1,0.50412987]
[1730717957407,10.50478618,2469.5,2469.1,4.55417987]
[1730717957607,6.45529618,2469.5,2469.1,4.55417987]
[1730717957973,2.40584618,2469.5,2469.2,4.04986]
[1730717958291,4.04926,2469.6,2469.2,4.04986]
[1730717958486,4.0494,2469.5,2469.1,4.55417987]
[1730717958692,4.0494,2469.5,2469.1,5.48134986]
[1730717959273,4.0494,2469.5,2469.1,4.55417987]
[1730717960300,5.70514618,2469.5,2469.1,4.55417987]
[1730717960704,5.70514618,2469.5,2469.1,0.50412987]
[1730717960908,4.83665,2469.4,2469.1,0.50412987]
[1730717962008,4.83665,2469.4,2469.1,4.55416987]
[1730717962009,0.787,2469.4,2469.1,4.55416987]
[1730717962892,4.83658,2469.4,2469.1,0.50412987]
[1730717967710,8.88629,2469.4,2469.1,0.50412987]
[1730717968011,4.83658,2469.4,2469.1,0.50412987]
[1730717973106,0.787,2469.4,2469.1,4.55417987]
[1730717974516,4.83657,2469.4,2469.1,0.50412987]
[1730717977923,0.787,2469.4,2469.1,4.55415987]
[1730717978129,0.787,2469.4,2469.1,0.50412987]
[1730717978290,4.83657,2469.4,2469.1,0.50412987]
[1730717981018,4.83657,2469.4,2469.1,0.193385]
[1730717981329,4.83657,2469.4,2469.2,0.193385]
[1730717984424,4.04973,2469.3,2469.2,0.193385]
[1730717995617,6.51937618,2469.3,2469.2,0.193385]
[1730717996223,4.86363,2469.3,2469.2,0.193385]
[1730717997010,4.04957,2469.4,2469.2,0.193385]
[1730717997225,4.04957,2469.4,2469.2,0.860685]
[1730717997955,4.04957,2469.4,2469.2,0.193385]
[1730717998118,4.04973,2469.3,2469.2,0.193385]
[1730718000656,6.50957618,2469.3,2469.2,0.193385]
[1730718000845,8.05510269,2469.3,2469.2,0.193385]
[1730718002564,4.85383,2469.3,2469.2,0.193385]
[1730718002764,4.04958,2469.4,2469.2,0.193385]
[1730718003052,4.04973,2469.3,2469.2,0.860685]
[1730718003242,4.04963,2469.4,2469.2,0.860685]
[1730718003827,4.04943,2469.5,2469.2,0.860685]
[1730718004141,4.04963,2469.4,2469.2,0.860685]
[1730718004328,4.04963,2469.4,2469.2,1.3517715]
[1730718007553,4.04948,2469.5,2469.2,1.3517715]
[1730718008957,4.04963,2469.4,2469.2,1.3517715]
[1730718009255,4.04963,2469.4,2469.2,0.860685]
[1730718012361,4.04963,2469.4,2469.2,0.193385]
[1730718013352,4.04973,2469.3,2469.2,0.193385]
[1730718013860,4.04963,2469.4,2469.2,0.193385]
[1730718014159,8.0993,2469.4,2469.2,0.193385]
[1730718014728,4.04973,2469.3,2469.2,0.193385]
[1730718015262,4.04958,2469.4,2469.2,0.193385]
[1730718015462,4.04953,2469.5,2469.2,0.193385]
[1730718015698,4.04953,2469.5,2469.2,0.6844505]
[1730718020933,5.70491618,2469.7,2469.3,0.6673]
[1730718021134,4.04944,2469.5,2469.3,0.6673]
[1730718021833,4.04944,2469.5,2469.2,0.193385]
[1730718022035,4.04944,2469.5,2469.2,0.6844575]
[1730718023767,4.04944,2469.5,2469.2,0.193385]
[1730718028774,4.04937,2469.6,2469.2,4.243255]
[1730718028993,8.09872,2469.6,2469.2,0.193385]
[1730718029376,4.04943,2469.5,2469.2,0.193385]
[1730718032079,4.86097,2469.8,2469.4,4.04951]
[1730718032290,0.7817,2470.1,2469.7,0.6673]
[1730718032597,4.04833,2470.2,2469.7,4.71629]
[1730718033286,4.04852,2470.1,2469.7,0.6673]
[1730718033799,4.04871,2470.0,2469.7,0.6673]
[1730718033969,4.04884,2469.9,2469.7,0.6673]
[1730718034496,4.04859,2470.0,2469.7,0.6673]
[1730718035292,4.04874,2469.9,2469.7,0.6673]
[1730718036958,4.04861,2470.0,2469.7,1.1861341]
[1730718037159,4.04861,2470.0,2469.7,0.6673]
[1730718038266,4.04843,2470.1,2469.7,0.6673]
[1730718038657,4.04843,2470.1,2469.7,4.71637]
[1730718039801,4.04812,2470.3,2469.9,4.71595]
[1730718040096,4.04827,2470.2,2469.9,0.6673]
[1730718040598,4.04794,2470.4,2469.9,0.6673]
[1730718040799,4.04811,2470.3,2469.9,0.6673]
[1730718041912,4.04794,2470.4,2469.9,4.71602]
[1730718042071,4.04783,2470.5,2470.0,4.04851]
[1730718042267,4.04783,2470.5,2470.1,0.6673]
[1730718043007,4.04745,2470.7,2470.3,4.04808]
[1730718043168,4.04738,2470.8,2470.4,4.71515]
[1730718043370,0.7625,2470.9,2470.4,4.71515]
[1730718043371,4.80964,2470.9,2470.4,4.71515]
[1730718043567,5.92428688,2470.9,2470.4,4.71515]
[1730718044213,4.04707,2471.0,2470.5,4.04769]
[1730718044420,4.04678,2471.1,2470.7,4.04741]
[1730718044615,4.04695,2471.0,2470.8,0.6673]
[1730718045213,4.04678,2471.1,2470.8,0.6673]
[1730718046022,5.95701966,2471.2,2470.8,0.6673]
[1730718046305,4.04686,2471.1,2470.8,0.6673]
[1730718047111,5.35897756,2471.2,2470.8,0.6673]
[1730718047602,4.0464,2471.4,2470.9,4.127951]
[1730718047807,4.0464,2471.4,2471.0,4.71417]
[1730718048874,4.0464,2471.4,2471.0,0.6673]
[1730718048875,4.04648,2471.3,2471.0,0.6673]
[1730718049675,4.0463,2471.4,2471.0,0.6673]
[1730718050117,4.0463,2471.4,2471.0,4.71415]
[1730718050409,0.55,2471.5,2471.0,4.71415]
[1730718050613,4.59614,2471.5,2471.0,4.71415]
[1730718051484,4.59614,2471.5,2471.0,0.6673]
[1730718051809,4.04637,2471.4,2471.0,0.6673]
[1730718052004,4.04637,2471.4,2471.0,5.19374317]
[1730718052505,4.106651,2471.6,2471.1,4.04676]
[1730718052712,4.0462,2471.5,2471.1,4.04676]
[1730718053108,4.0462,2471.5,2471.0,1.14682317]
[1730718053311,4.0462,2471.5,2471.0,5.19373317]
[1730718053813,4.0462,2471.5,2471.0,4.71421]
[1730718054111,4.04629,2471.4,2471.0,4.71421]
[1730718055280,4.106651,2471.6,2471.0,4.71421]
[1730718055614,4.04619,2471.5,2471.1,0.74822726]
[1730718055799,4.04619,2471.5,2471.1,4.79497726]
[1730718055992,4.0462,2471.5,2471.2,0.88418873]
[1730718057119,4.106561,2471.6,2471.2,4.93072873]
[1730718057485,4.04613,2471.5,2471.2,0.88418873]
[1730718058329,4.106561,2471.6,2471.2,0.88418873]
[1730718058616,8.152661,2471.6,2471.2,0.88418873]
[1730718058817,4.04631,2471.4,2471.2,0.88418873]
[1730718059008,4.04631,2471.4,2471.1,0.6673]
[1730718059381,4.04624,2471.5,2471.1,0.6673]
[1730718059382,4.04645,2471.3,2471.1,0.6673]
[1730718059582,4.04661,2471.2,2471.1,0.6673]
[1730718059810,4.04661,2471.2,2470.9,0.6673]
[1730718060986,4.04645,2471.3,2470.9,0.6673]
[1730718061186,4.04645,2471.3,2470.9,1.138755]
[1730718061407,4.04645,2471.3,2470.9,5.26671758]
[1730718061921,4.04645,2471.3,2470.9,5.185785]
[1730718062309,4.04645,2471.3,2470.9,5.26671759]
[1730718062503,4.04634,2471.4,2471.0,4.04689]
[1730718062727,8.0925,2471.5,2471.1,1.59866076]
[1730718063037,4.04625,2471.5,2471.1,4.71406]
[1730718064033,4.04629,2471.4,2471.1,0.6673]
[1730718065129,4.04614,2471.5,2471.1,4.71407]
[1730718065334,4.106601,2471.6,2471.1,4.12769736]
[1730718065504,4.106601,2471.6,2471.2,0.6673]
[1730718065705,4.106601,2471.6,2471.2,1.55149274]
[1730718066035,4.04619,2471.5,2471.2,1.55149274]
[1730718066405,4.106601,2471.6,2471.2,1.55149274]
[1730718066596,4.106601,2471.6,2471.2,5.59801274]
[1730718066940,0.060581,2471.6,2471.3,4.04645]
[1730718067228,0.060581,2471.6,2471.4,4.04627]
[1730718067399,0.060581,2471.6,2471.3,5.01898349]
[1730718068138,4.04614,2471.5,2471.3,0.97256349]
[1730718068305,8.09237,2471.5,2471.2,0.6673]
[1730718068510,4.04629,2471.4,2471.2,0.6673]
[1730718070127,4.04629,2471.4,2471.0,0.6673]
[1730718070331,4.04668,2471.2,2471.0,0.6673]
[1730718070708,4.04646,2471.3,2471.0,0.6673]
[1730718070709,4.04678,2471.1,2471.0,0.6673]
[1730718070913,4.04678,2471.1,2470.7,7.04735]
[1730718070914,4.04678,2471.1,2470.8,0.6673]
[1730718071123,4.04678,2471.1,2470.8,1.84351]
[1730718071432,4.04663,2471.2,2470.8,5.89078]
[1730718071798,4.04687,2471.1,2470.8,1.84351]
[1730718072330,4.04687,2471.1,2470.8,0.6673]
[1730718073412,4.04687,2471.1,2470.6,0.6673]
[1730718073413,8.09432,2470.9,2470.6,0.6673]
[1730718073615,4.0471,2470.9,2470.6,0.6673]
[1730718073935,4.04722,2470.9,2470.6,0.6673]
[1730718074139,4.04738,2470.8,2470.4,4.71518]
[1730718074339,4.04754,2470.7,2470.4,0.6673]
[1730718074542,4.04762,2470.6,2470.4,0.6673]
[1730718074726,4.04772,2470.6,2470.4,0.6673]
[1730718074928,4.04754,2470.7,2470.4,0.6673]
[1730718075298,6.47728618,2471.1,2470.5,4.1286441]
[1730718075513,1.65574618,2471.1,2470.6,0.6673]
[1730718075703,4.04702,2471.0,2470.6,4.71483]
[1730718076132,4.04679,2471.1,2470.7,4.04743]
[1730718076614,4.04679,2471.1,2470.6,4.71487]
[1730718076812,0.55,2471.2,2470.4,0.6673]
[1730718076813,5.70317618,2470.7,2470.4,0.6673]
[1730718077350,4.04766,2470.6,2470.4,0.6673]
[1730718077637,4.04743,2470.7,2470.4,0.6673]
[1730718078143,4.0476,2470.6,2470.4,0.6673]
[1730718078351,4.04794,2470.4,2470.2,0.6673]
[1730718078639,4.04827,2470.2,2470.0,0.6673]
[1730718078804,4.04803,2470.4,2470.0,0.6673]
[1730718079198,4.04803,2470.4,2470.0,4.71585]
[1730718081345,4.04802,2470.4,2470.0,4.71585]
[1730718082753,8.09603,2470.4,2470.0,4.71585]
[1730718082901,4.04813,2470.3,2470.0,0.6673]
[1730718083100,8.09604,2470.4,2470.0,0.6673]